fUSD/lending_fUSD_20250115
["ID","MTS","AMOUNT","RATE_DAILY","PERIOD"]
[349062814,1736956282638,-508.97951252,0.00052876,120]
[349062815,1736956282647,-541.66,0.00052876,120]
[349062816,1736956282657,-823.64,0.00052876,120]
[349062817,1736956282667,-500.0,0.00052876,120]
[349062818,1736956282677,-500.0,0.00052876,120]
[349062819,1736956282687,-500.0,0.00052876,2]
[349062820,1736956282698,-500.0,0.00052876,120]
[349062821,1736956282710,-500.0,0.00052876,120]
[349062822,1736956282720,-500.0,0.00052876,120]
[349062823,1736956282730,-991.22,0.00052876,120]
[349062824,1736956282740,-500.0,0.00052876,120]
[349062825,1736956282752,-500.0,0.00052876,120]
[349062826,1736956282762,-500.0,0.00052876,120]
[349062827,1736956282772,-500.0,0.00052876,120]
[349062828,1736956282782,-500.0,0.00052876,30]
[349062829,1736956282793,-500.0,0.00052876,120]
[349062830,1736956282804,-500.0,0.00052876,120]
[349062831,1736956282813,-500.0,0.00052876,120]
[349062832,1736956282823,-500.0,0.00052876,120]
[349062833,1736956282834,-500.0,0.00052876,120]
[349062834,1736956282845,-500.0,0.00052876,120]
[349062835,1736956282855,-500.0,0.00052876,120]
[349062836,1736956282866,-500.0,0.00052876,120]
[349062837,1736956282877,-500.0,0.00052876,120]
[349062838,1736956282886,-500.0,0.00052876,120]
[349062839,1736956282897,-501.76576356,0.00052876,120]
[349062840,1736956282909,-713.8,0.00052876,120]
[349062841,1736956282919,-500.0,0.00052876,120]
[349062842,1736956282929,-500.0,0.00052876,120]
[349062843,1736956282938,-500.0,0.00052876,120]
[349062844,1736956282949,-500.0,0.00052876,120]
[349062845,1736956282960,-500.0,0.00052876,120]
[349062846,1736956282971,-520.83,0.00052876,120]
[349062847,1736956282981,-500.0,0.00052876,120]
[349062848,1736956282990,-500.0,0.00052876,120]
[349062849,1736956283000,-500.0,0.00052876,120]
[349062850,1736956283010,-500.0,0.00052876,120]
[349062851,1736956283021,-500.0,0.00052876,120]
[349062852,1736956283030,-500.0,0.00052876,120]
[349062853,1736956283040,-683.22,0.00052876,120]
[349062854,1736956283050,-500.0,0.00052876,120]
[349062855,1736956283059,-500.0,0.00052876,120]
[349062856,1736956283068,-500.0,0.00052876,120]
[349062857,1736956283079,-500.0,0.00052876,120]
[349062858,1736956283088,-500.0,0.00052876,120]
[349062859,1736956283098,-500.0,0.00052876,120]
[349062860,1736956283108,-500.0,0.00052876,120]
[349062861,1736956283118,-500.0,0.00052876,120]
[349062862,1736956283129,-500.0,0.00052876,120]
[349062863,1736956283138,-500.0,0.00052876,120]
[349062864,1736956283148,-500.0,0.00052876,120]
[349062865,1736956283158,-500.0,0.00052876,120]
[349062866,1736956283168,-953.68,0.00052876,120]
[349062867,1736956283178,-500.0,0.00052876,120]
[349062868,1736956283188,-500.0,0.00052876,120]
[349062869,1736956283198,-500.0,0.00052876,120]
[349062870,1736956283211,-500.0,0.00052876,120]
[349062871,1736956283220,-500.0,0.00052876,120]
[349062872,1736956283230,-500.0,0.00052876,120]
[349062873,1736956283240,-542.48,0.00052876,120]
[349062874,1736956283251,-500.0,0.00052876,120]
[349062875,1736956283261,-525.84514386,0.00052876,120]
[349062876,1736956283271,-500.0,0.00052876,120]
[349062877,1736956283281,-500.0,0.00052876,120]
[349062878,1736956283291,-500.0,0.00052876,120]
[349062879,1736956283300,-500.0,0.00052876,120]
[349062880,1736956283310,-500.0,0.00052876,120]
[349062881,1736956283320,-500.0,0.00052876,120]
[349062882,1736956283330,-500.0,0.00052876,120]
[349062883,1736956283340,-1078.53,0.00052876,120]
[349062884,1736956283350,-786.0,0.00052876,120]
[349062885,1736956283360,-500.0,0.00052876,120]
[349062886,1736956283371,-500.0,0.00052876,120]
[349062887,1736956283382,-500.0,0.00052876,120]
[349062888,1736956283391,-500.0,0.00052876,120]
[349062889,1736956283402,-500.0,0.00052876,120]
[349062890,1736956283412,-500.0,0.00052876,120]
[349062891,1736956283422,-500.0,0.00052876,120]
[349062892,1736956283432,-776.98,0.00052876,120]
[349062893,1736956283442,-500.0,0.00052876,120]
[349062894,1736956283452,-500.0,0.00052876,120]
[349062895,1736956283463,-500.0,0.00052876,120]
[349062896,1736956283473,-767.75,0.00052876,120]
[349062897,1736956283483,-1023.29,0.00052876,120]
[349062898,1736956283493,-1008.37,0.00052876,120]
[349062899,1736956283503,-500.0,0.00052876,120]
[349062900,1736956283513,-500.0,0.00052876,120]
[349062901,1736956283522,-500.0,0.00052876,120]
[349062902,1736956283532,-354.84473209,0.00052876,25]
[349062903,1736956283542,-500.0,0.00052876,120]
[349062904,1736956283552,-500.0,0.00052876,120]
[349062905,1736956283562,-500.0,0.00052876,120]
[349062906,1736956283572,-500.0,0.00052876,120]
[349062907,1736956283582,-500.0,0.00052876,120]
[349062908,1736956283591,-685.34,0.00052876,120]
[349062909,1736956283601,-500.0,0.00052876,120]
[349062910,1736956283612,-500.0,0.00052876,120]
[349062911,1736956283622,-669.64,0.00052876,120]
[349062912,1736956283631,-500.0,0.00052876,120]
[349062913,1736956283641,-500.0,0.00052876,120]
[349062914,1736956283651,-956.49,0.00052876,120]
[349062915,1736956283661,-500.0,0.00052876,120]
[349062916,1736956283671,-500.0,0.00052876,120]
[349062917,1736956283681,-500.0,0.00052876,120]
[349062918,1736956283691,-500.0,0.00052876,120]
[349062919,1736956283701,-502.02910293,0.00052876,120]
[349062920,1736956283712,-500.0,0.00052876,120]
[349062921,1736956283722,-500.0,0.00052876,120]
[349062922,1736956283732,-501.44870047,0.00052876,90]
[349062923,1736956283747,-500.0,0.00052876,120]
[349062924,1736956283756,-500.0,0.00052876,120]
[349062925,1736956283766,-500.0,0.00052876,120]
[349062926,1736956283777,-500.0,0.00052876,120]
[349062927,1736956283789,-500.0,0.00052876,120]
[349062928,1736956283799,-500.0,0.00052876,120]
[349062929,1736956283809,-500.0,0.00052876,120]
[349062930,1736956283821,-500.0,0.00052876,120]
[349062931,1736956283831,-1034.79,0.00052876,120]
[349062932,1736956283840,-569.66,0.00052876,120]
[349062933,1736956283850,-500.0,0.00052876,120]
[349062934,1736956283860,-500.0,0.00052876,120]
[349062935,1736956283870,-500.0,0.00052876,120]
[349062936,1736956283879,-578.02,0.00052876,120]
[349062937,1736956283889,-500.0,0.00052876,2]
[349062938,1736956283898,-1272.04,0.00052876,120]
[349062939,1736956283909,-500.0,0.00052876,120]
[349062940,1736956283918,-500.0,0.00052876,120]
[349062941,1736956283927,-500.0,0.00052876,120]
[349062942,1736956283937,-500.0,0.00052876,120]
[349062943,1736956283946,-500.0,0.00052876,120]
[349062944,1736956283956,-666.66,0.00052876,120]
[349062945,1736956283967,-500.0,0.00052876,120]
[349062946,1736956283977,-741.05,0.00052876,120]
[349062947,1736956283986,-500.0,0.00052876,120]
[349062948,1736956283997,-500.0,0.00052876,120]
[349062949,1736956284007,-500.0,0.00052876,120]
[349062950,1736956284017,-579.96,0.00052876,120]
[349062951,1736956284027,-500.0,0.00052876,120]
[349062952,1736956284037,-500.0,0.00052876,120]
[349062953,1736956284047,-500.0,0.00052876,120]
[349062954,1736956284057,-500.0,0.00052876,120]
[349062955,1736956284067,-500.0,0.00052876,120]
[349062956,1736956284076,-1069.07,0.00052876,120]
[349062957,1736956284086,-521.8234233,0.00052876,120]
[349062958,1736956284097,-360.74866065,0.00052876,120]
[349062959,1736956284107,-258.56,0.00052876,120]
[349062960,1736956284117,-500.0,0.00052876,120]
[349062961,1736956284130,-500.0,0.00052876,120]
[349062962,1736956284140,-500.0,0.00052876,120]
[349062963,1736956284149,-500.0,0.00052876,120]
[349062964,1736956284159,-500.0,0.00052876,120]
[349062965,1736956284170,-500.0,0.00052876,120]
[349062966,1736956284181,-500.0,0.00052876,120]
[349062967,1736956284191,-500.0,0.00052876,120]
[349062968,1736956284200,-500.0,0.00052876,120]
[349062969,1736956284212,-500.0,0.00052876,120]
[349062970,1736956284221,-502.08275398,0.00052876,120]
[349062971,1736956284231,-500.0,0.00052876,120]
[349062972,1736956284240,-500.0,0.00052876,120]
[349062973,1736956284250,-501.23001669,0.00052876,120]
[349062974,1736956284260,-500.0,0.00052876,120]
[349062975,1736956284269,-500.0,0.00052876,120]
[349062976,1736956284280,-500.0,0.00052876,120]
[349062977,1736956284289,-500.0,0.00052876,120]
[349062978,1736956284299,-500.0,0.00052876,120]
[349062979,1736956284308,-500.0,0.00052876,120]
[349062980,1736956284319,-500.0,0.00052876,120]
[349062981,1736956284329,-500.0,0.00052876,120]
[349062982,1736956284339,-500.0,0.00052876,120]
[349062983,1736956284349,-500.0,0.00052876,120]
[349062984,1736956284358,-500.0,0.00052876,120]
[349062985,1736956284367,-500.0,0.00052876,120]
[349062986,1736956284378,-500.0,0.00052876,120]
[349062987,1736956284388,-863.42,0.00052876,120]
[349062988,1736956284397,-500.0,0.00052876,120]
[349062989,1736956284407,-501.49181459,0.00052876,120]
[349062990,1736956284417,-509.07611474,0.00052876,120]
[349062991,1736956284427,-500.0,0.00052876,120]
[349062992,1736956284436,-500.0,0.00052876,120]
[349062993,1736956284446,-500.0,0.00052876,120]
[349062994,1736956284455,-500.0,0.00052876,120]
[349062995,1736956284467,-500.0,0.00052876,120]
[349062996,1736956284477,-327.32330093,0.00052876,120]
[349062997,1736956284487,-500.0,0.00052876,120]
[349062998,1736956284497,-500.0,0.00052876,120]
[349062999,1736956284507,-500.0,0.00052876,120]
[349063000,1736956284518,-500.0,0.00052876,120]
[349063001,1736956284528,-500.0,0.00052876,120]
[349063002,1736956284538,-500.0,0.00052876,120]
[349063003,1736956284547,-500.0,0.00052876,120]
[349063004,1736956284689,-500.0,0.00052876,120]
[349063005,1736956284700,-500.0,0.00052876,120]
[349063006,1736956284712,-567.46,0.00052876,120]
[349063007,1736956284722,-500.0,0.00052876,120]
[349063008,1736956284731,-500.0,0.00052876,120]
[349063009,1736956284744,-500.0,0.00052876,120]
[349063010,1736956284754,-500.0,0.00052876,120]
[349063011,1736956284763,-1088.39,0.00052876,120]
[349063012,1736956284774,-500.0,0.00052876,120]
[349063013,1736956284785,-500.0,0.00052876,120]
[349063014,1736956284796,-500.0,0.00052876,120]
[349063015,1736956284806,-500.0,0.00052876,120]
[349063016,1736956284815,-500.0,0.00052876,120]
[349063017,1736956284828,-500.0,0.00052876,120]
[349063018,1736956284837,-500.0,0.00052876,120]
[349063019,1736956284846,-500.0,0.00052876,120]
[349063020,1736956284855,-545.48,0.00052876,120]
[349063021,1736956284864,-830.22,0.00052876,120]
[349063022,1736956284875,-516.47,0.00052876,120]
[349063023,1736956284885,-500.0,0.00052876,120]
[349063024,1736956284895,-1750.92,0.00052876,120]
[349063025,1736956284904,-500.0,0.00052876,120]
[349063026,1736956284915,-500.0,0.00052876,120]
[349063027,1736956284926,-500.0,0.00052876,120]
[349063028,1736956284935,-460.90310715,0.00052876,120]
[349063029,1736956284946,-500.0,0.00052876,120]
[349063030,1736956284956,-1151.99,0.00052876,120]
[349063031,1736956284966,-500.0,0.00052876,120]
[349063032,1736956284976,-500.0,0.00052876,120]
[349063033,1736956284987,-500.0,0.00052876,120]
[349063034,1736956284997,-500.0,0.00052876,120]
[349063035,1736956285006,-808.52,0.00052876,120]
[349063036,1736956285016,-502.16360672,0.00052876,120]
[349063037,1736956285026,-500.0,0.00052876,120]
[349063038,1736956285036,-500.0,0.00052876,7]
[349063039,1736956285046,-500.0,0.00052876,120]
[349063040,1736956285056,-501.78328228,0.00052876,120]
[349063041,1736956285066,-500.0,0.00052876,120]
[349063042,1736956285076,-500.0,0.00052876,120]
[349063043,1736956285085,-833.16,0.00052876,120]
[349063044,1736956285095,-500.0,0.00052876,120]
[349063045,1736956285105,-655.47,0.00052876,120]
[349063046,1736956285115,-500.0,0.00052876,120]
[349063047,1736956285126,-504.19105402,0.00052876,120]
[349063048,1736956285136,-500.0,0.00052876,120]
[349063049,1736956285145,-500.0,0.00052876,120]
[349063050,1736956285155,-500.0,0.00052876,120]
[349063051,1736956285165,-1411.41,0.00052876,120]
[349063052,1736956285176,-500.0,0.00052876,120]
[349063053,1736956285187,-500.0,0.00052876,120]
[349063054,1736956285196,-2335.74,0.00052876,120]
[349063055,1736956285207,-500.0,0.00052876,120]
[349063056,1736956285218,-845.91,0.00052876,120]
[349063057,1736956285229,-643.15,0.00052876,120]
[349063058,1736956285239,-500.0,0.00052876,120]
[349063059,1736956285249,-500.0,0.00052876,120]
[349063060,1736956285259,-1811.92,0.00052876,120]
[349063061,1736956285270,-1514.03,0.00052876,120]
[349063062,1736956285279,-875.7,0.00052876,120]
[349063063,1736956285289,-500.0,0.00052876,120]
[349063064,1736956285300,-500.0,0.00052876,120]
[349063065,1736956285310,-500.0,0.00052876,120]
[349063066,1736956285319,-500.0,0.00052876,120]
[349063067,1736956285329,-500.0,0.00052876,120]
[349063068,1736956285339,-500.0,0.00052876,120]
[349063069,1736956285349,-500.0,0.00052876,120]
[349063070,1736956285359,-1833.32,0.00052876,120]
[349063071,1736956285369,-818.95,0.00052876,120]
[349063072,1736956285379,-500.0,0.00052876,120]
[349063073,1736956285390,-503.57990647,0.00052876,120]
[349063074,1736956285400,-493.41593131,0.00052876,120]
[349063075,1736956285411,-500.0,0.00052876,120]
[349063076,1736956285421,-870.98,0.00052876,120]
[349063077,1736956285431,-500.0,0.00052876,120]
[349063078,1736956285441,-1571.26,0.00052876,120]
[349063079,1736956285451,-500.0,0.00052876,120]
[349063080,1736956285463,-729.88,0.00052876,120]
[349063081,1736956285473,-500.0,0.00052876,120]
[349063082,1736956285482,-500.0,0.00052876,120]
[349063083,1736956285492,-500.0,0.00052876,120]
[349063084,1736956285501,-576.45,0.00052876,120]
[349063085,1736956285511,-1295.82,0.00052876,120]
[349063086,1736956285521,-500.0,0.00052876,120]
[349063087,1736956285531,-500.0,0.00052876,120]
[349063088,1736956285541,-315.18504088,0.00052876,120]
[349063089,1736956285551,-500.0,0.00052876,120]
[349063090,1736956285561,-500.0,0.00052876,120]
[349063091,1736956285570,-500.0,0.00052876,120]
[349063092,1736956285580,-1631.23,0.00052876,120]
[349063093,1736956285590,-500.0,0.00052876,120]
[349063094,1736956285600,-500.0,0.00052876,120]
[349063095,1736956285610,-500.0,0.00052876,120]
[349063096,1736956285620,-500.0,0.00052876,120]
[349063097,1736956285631,-605.55,0.00052876,120]
[349063098,1736956285641,-1230.43,0.00052876,120]
[349063099,1736956285651,-949.32,0.00052876,120]
[349063100,1736956285661,-500.0,0.00052876,120]
[349063101,1736956285671,-500.0,0.00052876,120]
[349063102,1736956285681,-500.0,0.00052876,120]
[349063103,1736956285691,-581.98,0.00052876,120]
[349063104,1736956285700,-500.0,0.00052876,120]
[349063105,1736956285711,-506.24878938,0.00052876,120]
[349063106,1736956285721,-500.0,0.00052876,120]
[349063107,1736956285731,-2929.59,0.00052876,120]
[349063108,1736956285742,-1262.49,0.00052876,120]
[349063109,1736956285754,-500.0,0.00052876,120]
[349063110,1736956285764,-820.14,0.00052876,120]
[349063111,1736956285773,-604.89,0.00052876,120]
[349063112,1736956285783,-500.0,0.00052876,120]
[349063113,1736956285795,-500.0,0.00052876,120]
[349063114,1736956285804,-500.0,0.00052876,120]
[349063115,1736956285814,-500.0,0.00052876,120]
[349063116,1736956285825,-500.0,0.00052876,120]
[349063117,1736956285835,-500.0,0.00052876,7]
[349063118,1736956285845,-1949.77,0.00052876,120]
[349063119,1736956285856,-500.0,0.00052876,120]
[349063120,1736956285866,-500.0,0.00052876,120]
[349063121,1736956285876,-598.53,0.00052876,120]
[349063122,1736956285886,-500.0,0.00052876,120]
[349063123,1736956285895,-500.0,0.00052876,120]
[349063124,1736956285906,-566.05,0.00052876,120]
[349063125,1736956285916,-500.0,0.00052876,120]
[349063126,1736956285926,-501.75369422,0.00052876,120]
[349063127,1736956285935,-500.0,0.00052876,120]
[349063128,1736956285945,-635.19,0.00052876,120]
[349063129,1736956285955,-2191.36,0.00052876,120]
[349063130,1736956285968,-500.0,0.00052876,120]
[349063131,1736956285978,-500.0,0.00052876,120]
[349063132,1736956285988,-500.0,0.00052876,120]
[349063133,1736956285997,-500.0,0.00052876,120]
[349063134,1736956286007,-500.0,0.00052876,120]
[349063135,1736956286017,-500.0,0.00052876,120]
[349063136,1736956286027,-744.0,0.00052876,120]
[349063137,1736956286036,-500.0,0.00052876,120]
[349063138,1736956286046,-506.64049329,0.00052876,120]
[349063139,1736956286055,-500.0,0.00052876,120]
[349063140,1736956286065,-500.0,0.00052876,120]
[349063141,1736956286074,-906.29,0.00052876,120]
[349063142,1736956286084,-500.0,0.00052876,120]
[349063143,1736956286093,-4237.77,0.00052876,120]
[349063144,1736956286102,-500.0,0.00052876,120]
[349063145,1736956286112,-500.0,0.00052876,120]
[349063146,1736956286123,-500.0,0.00052876,120]
[349063147,1736956286132,-506.68182983,0.00052876,120]
[349063148,1736956286142,-500.0,0.00052876,120]
[349063149,1736956286151,-500.0,0.00052876,120]
[349063150,1736956286160,-500.0,0.00052876,120]
[349063151,1736956286170,-912.14,0.00052876,120]
[349063152,1736956286179,-500.0,0.00052876,120]
[349063153,1736956286188,-500.0,0.00052876,120]
[349063154,1736956286198,-1368.88,0.00052876,120]
[349063155,1736956286208,-1706.89,0.00052876,120]
[349063156,1736956286220,-1000.0,0.00052876,120]
[349063157,1736956286230,-918.62,0.00052876,120]
[349063158,1736956286240,-500.0,0.00052876,120]
[349063159,1736956286249,-505.50644643,0.00052876,120]
[349063160,1736956286259,-1734.94,0.00052876,120]
[349063161,1736956286270,-500.0,0.00052876,120]
[349063162,1736956286280,-500.0,0.00052876,120]
[349063163,1736956286289,-500.0,0.00052876,120]
[349063164,1736956286300,-2711.34,0.00052876,120]
[349063165,1736956286309,-500.0,0.00052876,120]
[349063166,1736956286319,-1192.56,0.00052876,120]
[349063167,1736956286329,-823.64,0.00052876,120]
[349063168,1736956286338,-500.0,0.00052876,120]
[349063169,1736956286349,-945.57,0.00052876,120]
[349063170,1736956286360,-500.0,0.00052876,120]
[349063171,1736956286371,-500.0,0.00052876,120]
[349063172,1736956286381,-500.0,0.00052876,120]
[349063173,1736956286391,-500.0,0.00052876,120]
[349063174,1736956286401,-500.0,0.00052876,10]
[349063175,1736956286410,-686.03,0.00052876,120]
[349063176,1736956286419,-500.0,0.00052876,120]
[349063177,1736956286429,-500.0,0.00052876,120]
[349063178,1736956286439,-500.0,0.00052876,120]
[349063179,1736956286449,-500.0,0.00052876,120]
[349063180,1736956286458,-1841.61,0.00052876,120]
[349063181,1736956286473,-500.0,0.00052876,120]
[349063182,1736956286483,-500.0,0.00052876,120]
[349063183,1736956286493,-751.34,0.00052876,120]
[349063184,1736956286503,-500.0,0.00052876,120]
[349063185,1736956286514,-702.95,0.00052876,120]
[349063186,1736956286525,-931.44,0.00052876,120]
[349063187,1736956286535,-500.0,0.00052876,120]
[349063188,1736956286545,-1001.04,0.00052876,120]
[349063189,1736956286556,-500.0,0.00052876,120]
[349063190,1736956286566,-500.0,0.00052876,120]
[349063191,1736956286575,-3022.65,0.00052876,2]
[349063192,1736956286586,-471.83854945,0.00052876,120]
[349063193,1736956286595,-500.0,0.00052876,120]
[349063194,1736956286605,-500.0,0.00052876,120]
[349063195,1736956286615,-1356.86,0.00052876,120]
[349063196,1736956286626,-1183.26,0.00052876,120]
[349063197,1736956286636,-278.82684786,0.00052876,120]
[349063198,1736956286647,-1246.12,0.00052876,120]
[349063199,1736956286656,-1984.29,0.00052876,120]
[349063200,1736956286667,-500.0,0.00052876,120]
[349063201,1736956286677,-755.66,0.00052876,120]
[349063202,1736956286687,-500.0,0.00052876,120]
[349063203,1736956286697,-500.0,0.00052876,120]
[349063204,1736956286707,-820.04,0.00052876,120]
[349063205,1736956286725,-500.0,0.00052876,120]
[349063206,1736956286735,-894.5,0.00052876,120]
[349063207,1736956286750,-500.0,0.00052876,120]
[349063208,1736956286894,-1558.7,0.00052876,120]
[349063209,1736956286905,-500.0,0.00052876,120]
[349063210,1736956286915,-1821.33,0.00052876,120]
[349063211,1736956286925,-500.0,0.00052876,120]
[349063212,1736956286936,-2247.77,0.00052876,120]
[349063213,1736956286946,-251.66069652,0.00052876,120]
[349063214,1736956286957,-500.0,0.00052876,120]
[349063215,1736956286970,-500.0,0.00052876,120]
[349063216,1736956286980,-500.0,0.00052876,120]
[349063217,1736956286991,-1132.68,0.00052876,120]
[349063218,1736956287001,-779.1,0.00052876,120]
[349063219,1736956287011,-500.0,0.00052876,120]
[349063220,1736956287022,-500.0,0.00052876,120]
[349063221,1736956287032,-500.0,0.00052876,120]
[349063222,1736956287042,-500.0,0.00052876,120]
[349063223,1736956287052,-500.0,0.00052876,120]
[349063224,1736956287061,-500.0,0.00052876,120]
[349063225,1736956287073,-500.0,0.00052876,120]
[349063226,1736956287088,-740.68,0.00052876,120]
[349063227,1736956287098,-1291.55,0.00052876,120]
[349063228,1736956287113,-500.0,0.00052876,120]
[349063229,1736956287124,-500.0,0.00052876,120]
[349063230,1736956287134,-500.0,0.00052876,120]
[349063231,1736956287145,-500.0,0.00052876,120]
[349063232,1736956287155,-500.0,0.00052876,120]
[349063233,1736956287164,-500.0,0.00052876,120]
[349063234,1736956287174,-1339.34,0.00052876,120]
[349063235,1736956287185,-500.0,0.00052876,120]
[349063236,1736956287195,-500.0,0.00052876,120]
[349063237,1736956287205,-500.0,0.00052876,120]
[349063238,1736956287218,-500.0,0.00052876,120]
[349063239,1736956287228,-798.98,0.00052876,120]
[349063240,1736956287238,-500.0,0.00052876,120]
[349063241,1736956287248,-1557.71,0.00052876,120]
[349063242,1736956287259,-1817.75,0.00052876,120]
[349063243,1736956287270,-500.0,0.00052876,120]
[349063244,1736956287281,-442.5,0.00052876,120]
[349063245,1736956287291,-500.0,0.00052876,120]
[349063246,1736956287301,-500.0,0.00052876,120]
[349063247,1736956287311,-500.0,0.00052876,120]
[349063248,1736956287321,-500.0,0.00052876,120]
[349063249,1736956287331,-500.0,0.00052876,120]
[349063250,1736956287342,-3637.12,0.00052876,30]
[349063251,1736956287352,-500.0,0.00052876,120]
[349063252,1736956287362,-500.0,0.00052876,120]
[349063253,1736956287371,-500.0,0.00052876,120]
[349063254,1736956287382,-2872.55,0.00052876,120]
[349063255,1736956287392,-500.0,0.00052876,120]
[349063256,1736956287402,-829.27,0.00052876,120]
[349063257,1736956287412,-1000.0,0.00052876,120]
[349063258,1736956287422,-2750.24,0.00052876,90]
[349063259,1736956287432,-1310.61,0.00052876,120]
[349063260,1736956287442,-500.0,0.00052876,120]
[349063261,1736956287452,-500.0,0.00052876,120]
[349063262,1736956287466,-642.58,0.00052876,120]
[349063263,1736956287476,-2341.21,0.00052876,120]
[349063264,1736956287486,-179.55916,0.00052876,120]
[349063265,1736956287497,-500.0,0.00052876,120]
[349063266,1736956287508,-706.15,0.00052876,120]
[349063267,1736956287518,-500.0,0.00052876,120]
[349063268,1736956287528,-500.0,0.00052876,120]
[349063269,1736956287538,-500.0,0.00052876,120]
[349063270,1736956287548,-500.0,0.00052876,120]
[349063271,1736956287557,-500.0,0.00052876,120]
[349063272,1736956287567,-1041.56,0.00052876,120]
[349063273,1736956287576,-500.0,0.00052876,120]
[349063274,1736956287587,-500.0,0.00052876,120]
[349063275,1736956287597,-500.0,0.00052876,120]
[349063276,1736956287606,-500.0,0.00052876,120]
[349063277,1736956287616,-500.0,0.00052876,120]
[349063278,1736956287626,-500.0,0.00052876,120]
[349063279,1736956287636,-500.0,0.00052876,120]
[349063280,1736956287647,-3227.41,0.00052876,120]
[349063281,1736956287656,-500.0,0.00052876,120]
[349063282,1736956287666,-500.0,0.00052876,120]
[349063283,1736956287675,-500.0,0.00052876,120]
[349063284,1736956287685,-500.0,0.00052876,120]
[349063285,1736956287695,-1148.7,0.00052876,120]
[349063286,1736956287706,-1179.9,0.00052876,120]
[349063287,1736956287717,-500.0,0.00052876,120]
[349063288,1736956287726,-500.0,0.00052876,120]
[349063289,1736956287737,-500.0,0.00052876,120]
[349063290,1736956287747,-500.0,0.00052876,120]
[349063291,1736956287761,-534.35,0.00052876,120]
[349063292,1736956287771,-500.0,0.00052876,120]
[349063293,1736956287781,-500.0,0.00052876,120]
[349063294,1736956287791,-500.0,0.00052876,120]
[349063295,1736956287801,-500.0,0.00052876,120]
[349063296,1736956287810,-500.0,0.00052876,120]
[349063297,1736956287820,-501.54553552,0.00052876,120]
[349063298,1736956287831,-778.85,0.00052876,120]
[349063299,1736956287840,-500.0,0.00052876,120]
[349063300,1736956287851,-500.0,0.00052876,120]
[349063301,1736956287861,-500.0,0.00052876,120]
[349063302,1736956287871,-500.0,0.00052876,120]
[349063303,1736956287883,-806.4,0.00052876,120]
[349063304,1736956287893,-500.0,0.00052876,120]
[349063305,1736956287903,-1518.02,0.00052876,120]
[349063306,1736956287914,-509.62,0.00052876,120]
[349063307,1736956287924,-500.0,0.00052876,120]
[349063308,1736956287934,-500.0,0.00052876,120]
[349063309,1736956287945,-500.0,0.00052876,120]
[349063310,1736956287955,-500.0,0.00052876,120]
[349063311,1736956287966,-500.0,0.00052876,120]
[349063312,1736956287976,-644.08,0.00052876,120]
[349063313,1736956287985,-1713.52,0.00052876,120]